fUSD/lending_fUSD_20250217
["ID","MTS","AMOUNT","RATE_DAILY","PERIOD"]
[353356114,1739794233557,-986.71,0.00013498,2]
[353356115,1739794233567,-438.96,0.00013498,2]
[353356116,1739794233576,-986.58,0.00013498,2]
[353356117,1739794233586,-1587.0,0.000135,3]
[353356118,1739794233595,-150.0,0.00013537,2]
[353356119,1739794233604,-150.0,0.00013537,2]
[353356120,1739794233616,-300.0,0.00013537,2]
[353356121,1739794233625,-439.11,0.00013537,2]
[353356122,1739794233634,-150.0,0.00013537,2]
[353356123,1739794233643,-150.0,0.00013537,2]
[353356124,1739794233653,-150.0,0.00013537,2]
[353356125,1739794233662,-1000.0,0.00013539,2]
[353356126,1739794233672,-150.0,0.00013545,2]
[353356127,1739794233681,-381.60021306,0.00013576,2]
[353356128,1739794233691,-500.0,0.00013589,2]
[353356129,1739794233701,-2000.0,0.00013589,2]
[353356130,1739794233711,-200.0,0.00013589,2]
[353356131,1739794233721,-406.73843398,0.00013598,2]
[353356132,1739794233732,-2074.0587447,0.00013598,2]
[353356133,1739794233742,-163.07310981,0.00013598,2]
[353356134,1739794233752,-1179.28474092,0.00013598,2]
[353356135,1739794233762,-94.59395966,0.00013598,2]
[353356136,1739794233774,-219.50383977,0.00013598,2]
[353356137,1739794233783,-1102.71645602,0.000136,2]
[353356138,1739794233794,-838.14102307,0.000136,2]
[353356139,1739794233810,-559.14252091,0.000136,2]
[353356140,1739794233820,-223.79747909,0.000136,2]
[353356141,1739794233833,-720.33,0.000136,2]
[353356142,1739794233845,-300.3,0.000136,2]
[353356143,1739794233858,-1255.57252091,0.000136,2]
[353356144,1739794233868,-1080.75807488,0.000136,2]
[353356145,1739794233887,-255.77,0.000136,2]
[353356146,1739794233898,-638.29983501,0.000136,2]
[353356147,1739794233910,-849.84209011,0.000136,2]
[353356148,1739794234165,-180.7862874,0.000136,2]
[353356149,1739794234175,-776.28026235,0.000136,2]
[353356150,1739794234184,-9325.66083936,0.000136,2]
[353356169,1739794237796,-283.57102896,0.000136,2]
[353356173,1739794237805,-858.54621147,0.00013631,2]
[353356190,1739794237949,-18.16378853,0.00013631,2]
[353356192,1739794237958,-179.4048118,0.00013631,2]
[353356194,1739794237968,-1678.43,0.00013631,2]
[353356196,1739794237978,-2480.79717862,0.00013633,2]
[353356198,1739794237988,-1179.28474084,0.00013633,2]
[353356200,1739794237998,-1000.0,0.00013641,2]
[353356202,1739794238008,-2480.79717862,0.00013668,2]
[353356204,1739794238018,-1179.28474084,0.00013668,2]
[353356206,1739794238028,-500.58085233,0.0001367,2]
[353356208,1739794238038,-1060.0,0.00013677,2]
[353356210,1739794238049,-503.94,0.00013678,2]
[353356212,1739794238058,-260.20746715,0.0001368,2]
[353356216,1739794238089,-339.30327672,0.0001368,2]
[353356366,1739794240167,-351.73445482,0.0001086,2]
[353356367,1739794240179,-382.54554518,0.0001086,2]
[353356368,1739794240189,-734.28,0.00013124,2]
[353356369,1739794240199,-20182.74299524,0.0001368,2]
[353356370,1739794240208,-4371.6319851,0.00013689,2]
[353356371,1739794240217,-6787.5609998,0.00013689,2]
[353356372,1739794240226,-238.7167387,0.00013689,2]
[353356373,1739794240236,-218.607181,0.00013689,2]
[353356374,1739794240245,-3129.0215208,0.00013689,2]
[353356375,1739794240254,-270.0061121,0.00013689,2]
[353356377,1739794240521,-500.0,0.00013698,2]
[353356378,1739794240531,-500.0,0.00013698,2]
[353356379,1739794240545,-501.71525262,0.00013698,2]
[353356380,1739794240554,-500.0,0.00013698,2]
[353356381,1739794240563,-501.70594703,0.00013698,2]
[353356382,1739794240572,-501.22047282,0.00013698,2]
[353356383,1739794240583,-500.74209169,0.00013698,2]
[353356384,1739794240593,-455.20503646,0.00013698,2]
[353356385,1739794240603,-500.0,0.00013698,2]
[353356386,1739794240614,-500.0,0.00013698,2]
[353356387,1739794240624,-300.0,0.00013698,2]
[353356388,1739794240634,-503.71760818,0.00013698,2]
[353356389,1739794240643,-500.0,0.00013698,2]
[353356390,1739794240653,-502.11998496,0.00013698,2]
[353356391,1739794240662,-500.0,0.00013698,2]
[353356392,1739794240672,-500.0,0.00013698,2]
[353356393,1739794240681,-500.0,0.00013698,2]
[353356394,1739794240691,-500.0,0.00013698,2]
[353356395,1739794240700,-500.0,0.00013698,2]
[353356396,1739794240710,-500.0,0.00013698,2]
[353356397,1739794240719,-501.45075582,0.00013698,2]
[353356398,1739794240729,-500.0,0.00013698,2]
[353356399,1739794240738,-500.0,0.00013698,2]
[353356400,1739794240747,-291.70620789,0.00013698,2]
[353356401,1739794240757,-500.0,0.00013698,2]
[353356402,1739794240767,-500.0,0.00013698,2]
[353356403,1739794240776,-500.0,0.00013698,2]
[353356404,1739794240786,-500.0,0.00013698,2]
[353356405,1739794240796,-500.0,0.00013698,2]
[353356406,1739794240805,-501.2339412,0.00013698,2]
[353356407,1739794240815,-501.24907164,0.00013698,2]
[353356408,1739794240824,-501.44754775,0.00013698,2]
[353356409,1739794240833,-500.0,0.00013698,2]
[353356410,1739794240843,-500.0,0.00013698,2]
[353356411,1739794240852,-500.0,0.00013698,2]
[353356412,1739794240862,-500.0,0.00013698,2]
[353356413,1739794240871,-500.0,0.00013698,2]
[353356414,1739794240882,-500.0,0.00013698,2]
[353356415,1739794240891,-500.0,0.00013698,2]
[353356416,1739794240901,-500.0,0.00013698,2]
[353356417,1739794240910,-500.0,0.00013698,2]
[353356418,1739794240922,-500.0,0.00013698,2]
[353356419,1739794240937,-500.0,0.00013698,2]
[353356420,1739794240953,-229.90301478,0.00013698,2]
[353356421,1739794240962,-500.0,0.00013698,2]
[353356422,1739794240971,-500.0,0.00013698,2]
[353356423,1739794240980,-500.0,0.00013698,2]
[353356424,1739794240990,-502.7192038,0.00013698,2]
[353356425,1739794240999,-773.89,0.00013698,2]
[353356426,1739794241008,-500.0,0.00013698,2]
[353356427,1739794241018,-500.0,0.00013698,2]
[353356428,1739794241027,-500.0,0.00013698,2]
[353356429,1739794241038,-500.0,0.00013698,2]
[353356430,1739794241047,-500.0,0.00013698,2]
[353356431,1739794241057,-500.0,0.00013698,2]
[353356432,1739794241067,-500.0,0.00013698,2]
[353356433,1739794241078,-511.08425563,0.00013698,2]
[353356434,1739794241088,-500.0,0.00013698,2]
[353356435,1739794241098,-500.0,0.00013698,2]
[353356436,1739794241108,-500.0,0.00013698,2]
[353356437,1739794241117,-266.23899499,0.00013698,2]
[353356438,1739794241127,-500.0,0.00013698,2]
[353356439,1739794241136,-500.0,0.00013698,2]
[353356440,1739794241148,-500.0,0.00013698,2]
[353356441,1739794241157,-502.11927645,0.00013698,2]
[353356442,1739794241167,-500.0,0.00013698,2]
[353356443,1739794241176,-500.0,0.00013698,2]
[353356444,1739794241186,-393.9084523,0.00013698,2]
[353356445,1739794241195,-500.0,0.00013698,2]
[353356446,1739794241204,-747.45,0.00013698,2]
[353356447,1739794241215,-500.0,0.00013698,2]
[353356448,1739794241224,-500.0,0.00013698,2]
[353356449,1739794241234,-500.0,0.00013698,2]
[353356450,1739794241244,-500.0,0.00013698,2]
[353356451,1739794241254,-500.0,0.00013698,2]
[353356452,1739794241263,-506.45374156,0.00013698,2]
[353356453,1739794241273,-500.0,0.00013698,2]
[353356454,1739794241283,-500.0,0.00013698,2]
[353356455,1739794241292,-504.96797469,0.00013698,2]
[353356456,1739794241302,-510.23339836,0.00013698,2]
[353356457,1739794241312,-500.0,0.00013698,2]
[353356458,1739794241322,-500.0,0.00013698,2]
[353356459,1739794241332,-500.0,0.00013698,2]
[353356460,1739794241342,-500.0,0.00013698,2]
[353356461,1739794241352,-183.58894276,0.00013698,2]
[353356462,1739794241361,-500.0,0.00013698,2]
[353356463,1739794241371,-500.0,0.00013698,2]
[353356464,1739794241380,-500.0,0.00013698,2]
[353356465,1739794241389,-500.0,0.00013698,2]
[353356466,1739794241398,-500.0,0.00013698,2]
[353356467,1739794241407,-500.0,0.00013698,2]
[353356468,1739794241416,-500.0,0.00013698,2]
[353356469,1739794241426,-500.0,0.00013698,2]
[353356470,1739794241435,-500.0,0.00013698,2]
[353356471,1739794241446,-500.0,0.00013698,2]
[353356472,1739794241455,-500.0,0.00013698,2]
[353356473,1739794241465,-500.0,0.00013698,2]
[353356474,1739794241475,-500.0,0.00013698,2]
[353356475,1739794241484,-500.0,0.00013698,2]
[353356476,1739794241493,-500.0,0.00013698,2]
[353356477,1739794241503,-500.0,0.00013698,2]
[353356478,1739794241512,-500.0,0.00013698,2]
[353356479,1739794241522,-501.47595755,0.00013698,2]
[353356480,1739794241531,-169.4035171,0.00013698,2]
[353356481,1739794241547,-500.0,0.00013698,2]
[353356482,1739794241556,-500.0,0.00013698,2]
[353356483,1739794241566,-500.0,0.00013698,2]
[353356484,1739794241576,-500.0,0.00013698,2]
[353356485,1739794241586,-500.0,0.00013698,2]
[353356486,1739794241596,-500.0,0.00013698,2]
[353356487,1739794241606,-500.0,0.00013698,2]
[353356488,1739794241618,-500.0,0.00013698,2]
[353356489,1739794241629,-277.14685709,0.00013698,2]
[353356490,1739794241639,-500.0,0.00013698,2]
[353356491,1739794241648,-500.0,0.00013698,2]
[353356492,1739794241658,-500.0,0.00013698,2]
[353356493,1739794241667,-500.0,0.00013698,2]
[353356494,1739794241676,-264.54563271,0.00013698,2]
[353356495,1739794241686,-500.0,0.00013698,2]
[353356496,1739794241695,-500.0,0.00013698,2]
[353356497,1739794241706,-500.0,0.00013698,2]
[353356498,1739794241716,-500.0,0.00013698,2]
[353356499,1739794241727,-500.0,0.00013698,2]
[353356500,1739794241739,-377.46205654,0.00013698,2]
[353356501,1739794241750,-500.0,0.00013698,2]
[353356502,1739794241759,-502.85700997,0.00013698,2]
[353356503,1739794241768,-185.86282879,0.00013698,2]
[353356504,1739794241778,-500.0,0.00013698,2]
[353356505,1739794241787,-513.26,0.00013698,2]
[353356506,1739794241796,-500.0,0.00013698,2]
[353356507,1739794241806,-1772.663673,0.00013698,2]
[353356508,1739794241816,-730.9,0.00013698,2]
[353356509,1739794241825,-161.281649,0.00013698,2]
[353356510,1739794241834,-504.7777303,0.00013698,2]
[353356511,1739794241844,-500.0,0.00013698,2]
[353356512,1739794241854,-156.075971,0.00013698,2]
[353356513,1739794241864,-500.0,0.00013698,2]
[353356514,1739794241873,-500.0,0.00013698,2]
[353356515,1739794241883,-500.0,0.00013698,2]
[353356516,1739794241892,-500.0,0.00013698,2]
[353356517,1739794241901,-504.27343023,0.00013698,2]
[353356518,1739794241911,-500.0,0.00013698,2]
[353356519,1739794241921,-500.0,0.00013698,2]
[353356520,1739794241931,-500.0,0.00013698,2]
[353356521,1739794241940,-1615.635469,0.00013698,2]
[353356522,1739794241950,-500.0,0.00013698,2]
[353356523,1739794241959,-577.01394756,0.00013698,2]
[353356524,1739794241969,-500.0,0.00013698,2]
[353356525,1739794241979,-500.0,0.00013698,2]
[353356526,1739794241988,-885.09,0.00013698,2]
[353356527,1739794241997,-207.566228,0.00013698,2]
[353356528,1739794242008,-553.99,0.00013698,2]
[353356529,1739794242018,-500.0,0.00013698,2]
[353356530,1739794242027,-500.0,0.00013698,2]
[353356531,1739794242037,-500.0,0.00013698,2]
[353356532,1739794242046,-500.0,0.00013698,2]
[353356533,1739794242055,-502.08382561,0.00013698,2]
[353356534,1739794242064,-500.0,0.00013698,2]
[353356535,1739794242073,-500.0,0.00013698,2]
[353356536,1739794242082,-514.14308265,0.00013698,2]
[353356537,1739794242092,-500.0,0.00013698,2]
[353356538,1739794242102,-501.84145718,0.00013698,2]
[353356539,1739794242111,-500.0,0.00013698,2]
[353356540,1739794242121,-500.0,0.00013698,2]
[353356541,1739794242130,-500.0,0.00013698,2]
[353356542,1739794242140,-500.0,0.00013698,2]
[353356543,1739794242149,-500.0,0.00013698,2]
[353356544,1739794242158,-502.90056465,0.00013698,2]
[353356545,1739794242167,-500.0,0.00013698,2]
[353356546,1739794242178,-1112.53,0.00013698,2]
[353356547,1739794242188,-878.62,0.00013698,2]
[353356548,1739794242197,-500.0,0.00013698,2]
[353356549,1739794242206,-500.0,0.00013698,2]
[353356550,1739794242215,-500.0,0.00013698,2]
[353356551,1739794242224,-507.96821163,0.00013698,2]
[353356552,1739794242234,-500.0,0.00013698,2]
[353356553,1739794242244,-500.0,0.00013698,2]
[353356554,1739794242254,-500.0,0.00013698,2]
[353356555,1739794242263,-763.15,0.00013698,2]
[353356556,1739794242272,-500.0,0.00013698,2]
[353356557,1739794242281,-500.0,0.00013698,2]
[353356558,1739794242291,-500.0,0.00013698,2]
[353356559,1739794242300,-500.0,0.00013698,2]
[353356560,1739794242311,-500.0,0.00013698,2]
[353356561,1739794242321,-500.0,0.00013698,2]
[353356562,1739794242331,-150.18286318,0.00013698,2]
[353356563,1739794242340,-503.45150012,0.00013698,2]
[353356564,1739794242349,-500.0,0.00013698,2]
[353356565,1739794242358,-313.59598745,0.00013698,2]
[353356566,1739794242368,-894.67,0.00013698,2]
[353356567,1739794242378,-500.0,0.00013698,2]
[353356568,1739794242387,-511.05193907,0.00013698,2]
[353356569,1739794242397,-500.0,0.00013698,2]
[353356570,1739794242406,-500.0,0.00013698,2]
[353356571,1739794242415,-500.0,0.00013698,2]
[353356572,1739794242425,-500.0,0.00013698,2]
[353356573,1739794242435,-514.31040469,0.00013698,2]
[353356574,1739794242444,-500.0,0.00013698,2]
[353356575,1739794242454,-500.0,0.00013698,2]
[353356576,1739794242463,-827.19,0.00013698,2]
[353356577,1739794242471,-500.0,0.00013698,2]
[353356578,1739794242480,-1254.73,0.00013698,2]
[353356579,1739794242490,-500.0,0.00013698,2]
[353356580,1739794242499,-500.0,0.00013698,2]
[353356581,1739794242509,-500.0,0.00013698,2]
[353356582,1739794242518,-500.0,0.00013698,2]
[353356583,1739794242528,-500.0,0.00013698,2]
[353356584,1739794242542,-500.0,0.00013698,2]
[353356585,1739794242552,-500.0,0.00013698,2]
[353356586,1739794242561,-500.0,0.00013698,2]
[353356587,1739794242571,-500.0,0.00013698,2]
[353356588,1739794242583,-500.0,0.00013698,2]
[353356589,1739794242594,-500.76779694,0.00013698,2]
[353356590,1739794242604,-1449.69,0.00013698,2]
[353356591,1739794242616,-500.0,0.00013698,2]
[353356592,1739794242627,-500.0,0.00013698,2]
[353356593,1739794242638,-500.0,0.00013698,2]
[353356594,1739794242648,-500.0,0.00013698,2]
[353356595,1739794242658,-500.0,0.00013698,2]
[353356596,1739794242667,-500.0,0.00013698,2]
[353356597,1739794242677,-151.95188736,0.00013698,2]
[353356598,1739794242686,-500.0,0.00013698,2]
[353356599,1739794242696,-500.0,0.00013698,2]
[353356600,1739794242705,-500.0,0.00013698,2]
[353356602,1739794242715,-500.0,0.00013698,2]
[353356604,1739794242724,-500.0,0.00013698,2]
[353356605,1739794242733,-1323.84,0.00013698,2]
[353356606,1739794242742,-500.0,0.00013698,2]
[353356607,1739794242752,-500.0,0.00013698,2]
[353356608,1739794242761,-500.0,0.00013698,2]
[353356609,1739794242771,-673.92,0.00013698,2]
[353356611,1739794242781,-500.0,0.00013698,2]
[353356614,1739794242791,-500.0,0.00013698,2]
[353356615,1739794242800,-500.0,0.00013698,2]
[353356617,1739794242811,-500.0,0.00013698,2]
[353356618,1739794242821,-500.0,0.00013698,2]
[353356620,1739794242830,-582.25,0.00013698,2]
[353356622,1739794242841,-500.0,0.00013698,2]
[353356624,1739794242850,-501.11527794,0.00013698,2]
[353356626,1739794242860,-500.0,0.00013698,2]
[353356629,1739794242870,-710.07,0.00013698,2]
[353356632,1739794242880,-500.0,0.00013698,2]
[353356633,1739794242890,-680.47,0.00013698,2]
[353356636,1739794242900,-500.0,0.00013698,2]
[353356639,1739794242909,-500.0,0.00013698,2]
[353356641,1739794242919,-500.0,0.00013698,2]
[353356643,1739794242928,-500.0,0.00013698,2]
[353356644,1739794242938,-500.0,0.00013698,2]
[353356645,1739794242947,-500.0,0.00013698,2]
[353356646,1739794242956,-760.74,0.00013698,2]
[353356648,1739794242966,-500.0,0.00013698,2]
[353356650,1739794242975,-966.41,0.00013698,2]
[353356652,1739794242985,-500.0,0.00013698,2]
[353356654,1739794242995,-500.0,0.00013698,2]
[353356655,1739794243005,-500.0,0.00013698,2]
[353356656,1739794243015,-1071.95,0.00013698,2]
[353356657,1739794243024,-500.0,0.00013698,2]
[353356658,1739794243033,-721.78,0.00013698,2]
[353356659,1739794243042,-500.0,0.00013698,2]
[353356660,1739794243051,-500.0,0.00013698,2]
[353356661,1739794243061,-500.0,0.00013698,2]
[353356662,1739794243071,-151.39232991,0.00013698,2]
[353356663,1739794243103,-348.60767009,0.00013698,2]
[353356664,1739794243112,-1069.22,0.00013698,2]
[353356665,1739794243122,-500.0,0.00013698,2]
[353356666,1739794243132,-500.0,0.00013698,2]
[353356667,1739794243142,-500.0,0.00013698,2]
[353356668,1739794243152,-500.0,0.00013698,2]
[353356669,1739794243162,-500.0,0.00013698,2]
[353356670,1739794243171,-564.39,0.00013698,2]
[353356671,1739794243181,-500.0,0.00013698,2]
[353356672,1739794243190,-711.54,0.00013698,2]
[353356673,1739794243199,-500.0,0.00013698,2]
[353356674,1739794243208,-500.0,0.00013698,2]
[353356675,1739794243218,-503.80749561,0.00013698,2]
[353356676,1739794243227,-500.0,0.00013698,2]
[353356677,1739794243236,-500.0,0.00013698,2]
[353356678,1739794243245,-999.36,0.00013698,2]
[353356679,1739794243256,-548.96,0.00013698,2]
[353356680,1739794243266,-332.40336028,0.00013698,2]
[353356681,1739794243275,-500.0,0.00013698,2]
[353356682,1739794243284,-500.0,0.00013698,2]
[353356683,1739794243294,-1317.05,0.00013698,2]
[353356684,1739794243304,-717.19,0.00013698,2]
[353356685,1739794243314,-500.0,0.00013698,2]
[353356686,1739794243324,-556.74258911,0.00013698,2]
[353356687,1739794243334,-500.0,0.00013698,2]
[353356688,1739794243343,-213.681324,0.00013698,2]
[353356689,1739794243352,-500.0,0.00013698,2]
[353356690,1739794243362,-500.0,0.00013698,2]
[353356691,1739794243372,-705.49,0.00013698,2]
[353356692,1739794243382,-500.81242321,0.00013698,2]
[353356693,1739794243391,-500.0,0.00013698,2]
[353356694,1739794243400,-500.0,0.00013698,2]
[353356695,1739794243409,-500.0,0.00013698,2]
[353356696,1739794243419,-1151.94,0.00013698,2]
[353356697,1739794243429,-500.0,0.00013698,2]
[353356698,1739794243439,-500.0,0.00013698,2]
[353356699,1739794243448,-1003.23,0.00013698,2]
[353356700,1739794243458,-859.51,0.00013698,2]
[353356701,1739794243468,-500.0,0.00013698,2]
[353356702,1739794243477,-500.0,0.00013698,2]
[353356704,1739794243487,-500.0,0.00013698,2]
[353356705,1739794243496,-500.0,0.00013698,2]
[353356706,1739794243507,-753.13,0.00013698,2]
[353356707,1739794243517,-1336.53,0.00013698,2]
[353356708,1739794243526,-500.0,0.00013698,2]
[353356709,1739794243537,-207.566223,0.00013698,2]
[353356710,1739794243549,-136.90808356,0.00013698,2]
[353356711,1739794243563,-321.5919,0.00013698,2]
[353356712,1739794243574,-272.97001644,0.00013698,2]
[353356713,1739794243585,-1253.12,0.00013698,2]
[353356714,1739794243595,-500.0,0.00013698,2]
[353356715,1739794243605,-500.0,0.00013698,2]
[353356716,1739794243622,-500.0,0.00013698,2]
[353356717,1739794243632,-500.0,0.00013698,2]
[353356718,1739794243642,-500.0,0.00013698,2]
[353356719,1739794243652,-500.0,0.00013698,2]
[353356720,1739794243662,-500.0,0.00013698,2]
[353356721,1739794243672,-500.0,0.00013698,2]
[353356722,1739794243681,-500.0,0.00013698,2]
[353356723,1739794243691,-315.51484674,0.00013698,2]
[353356724,1739794243725,-184.48515326,0.00013698,2]
[353356725,1739794243734,-500.0,0.00013698,2]
[353356726,1739794243744,-500.0,0.00013698,2]
[353356727,1739794243754,-281.94657737,0.00013698,2]
[353356728,1739794243767,-219.29309767,0.00013698,2]
[353356729,1739794243777,-477.55099539,0.00013698,2]
[353356730,1739794243788,-22.44900461,0.00013698,2]
[353356731,1739794243798,-906.47,0.00013698,2]
[353356732,1739794243807,-500.0,0.00013698,2]
[353356733,1739794243817,-234.86849128,0.00013698,2]
[353356734,1739794243828,-265.13150872,0.00013698,2]
[353356735,1739794243838,-522.22849128,0.00013698,2]
[353356736,1739794243849,-506.94150872,0.00013698,2]
[353356737,1739794243859,-506.02300249,0.00013698,2]
[353356738,1739794243868,-500.0,0.00013698,2]
[353356739,1739794243878,-500.0,0.00013698,2]
[353356740,1739794243887,-282.03548879,0.00013698,2]
[353356741,1739794243898,-297.06285234,0.00013698,2]
[353356742,1739794243908,-689.69611767,0.00013698,2]
[353356743,1739794243920,-770.52388233,0.00013698,2]
[353356744,1739794243929,-182.40745734,0.00013698,2]
[353356745,1739794243948,-546.83254266,0.00013698,2]
[353356746,1739794243958,-256.52545734,0.00013698,2]
[353356747,1739794243970,-243.47454266,0.00013698,2]
[353356748,1739794243979,-500.0,0.00013698,2]
[353356749,1739794243989,-500.0,0.00013698,2]
[353356750,1739794243999,-500.0,0.00013698,2]
[353356751,1739794244009,-329.81545736,0.00013698,2]
[353356752,1739794244020,-170.18454264,0.00013698,2]
[353356753,1739794244029,-199.96356583,0.00013698,2]
[353356754,1739794244048,-300.03643417,0.00013698,2]
[353356755,1739794244057,-22.27413383,0.00013698,2]
[353356756,1739794244070,-477.72586617,0.00013698,2]
[353356757,1739794244079,-406.06719347,0.00013698,2]
[353356758,1739794244091,-93.93280653,0.00013698,2]
[353356759,1739794244101,-500.0,0.00013698,2]
[353356760,1739794244110,-75.20479696,0.00013698,2]
[353356761,1739794244129,-423.34219648,0.00013698,2]
[353356762,1739794244138,-272.00291779,0.00013698,2]
[353356763,1739794244150,-227.99708221,0.00013698,2]
[353356764,1739794244160,-635.48,0.00013698,2]
[353356765,1739794244169,-500.0,0.00013698,2]
[353356766,1739794244179,-671.56,0.00013698,2]
[353356767,1739794244188,-464.28326518,0.00013698,2]
[353356768,1739794244197,-500.0,0.00013698,2]
[353356769,1739794244207,-500.0,0.00013698,2]
[353356770,1739794244216,-817.59,0.00013698,2]
[353356771,1739794244225,-500.0,0.00013698,2]
[353356772,1739794244235,-500.0,0.00013698,2]
[353356773,1739794244244,-194.76708853,0.00013698,2]
[353356774,1739794244254,-954.66,0.00013698,2]
[353356775,1739794244263,-500.0,0.00013698,2]
[353356776,1739794244273,-500.0,0.00013698,2]
[353356777,1739794244283,-500.0,0.00013698,2]
[353356778,1739794244293,-500.0,0.00013698,2]
[353356779,1739794244302,-522.5,0.00013698,2]
[353356780,1739794244312,-500.0,0.00013698,2]
[353356781,1739794244321,-500.0,0.00013698,2]
[353356782,1739794244331,-500.0,0.00013698,2]
[353356783,1739794244343,-500.0,0.00013698,2]
[353356784,1739794244352,-500.0,0.00013698,2]
[353356785,1739794244361,-1099.49,0.00013698,2]
[353356786,1739794244371,-559.5,0.00013698,2]
[353356787,1739794244380,-500.0,0.00013698,2]
[353356788,1739794244390,-500.0,0.00013698,2]
[353356789,1739794244399,-500.0,0.00013698,2]
[353356790,1739794244408,-646.75,0.00013698,2]
[353356791,1739794244418,-500.0,0.00013698,2]
[353356792,1739794244428,-501.71323372,0.00013698,2]
[353356793,1739794244438,-500.0,0.00013698,2]
[353356794,1739794244447,-843.44,0.00013698,2]
[353356795,1739794244457,-500.0,0.00013698,2]
[353356796,1739794244466,-500.0,0.00013698,2]
[353356797,1739794244475,-508.80416564,0.00013698,2]
[353356798,1739794244676,-500.0,0.00013698,2]
[353356799,1739794244687,-848.29,0.00013698,2]
[353356800,1739794244698,-500.0,0.00013698,2]
[353356801,1739794244709,-500.0,0.00013698,2]
[353356802,1739794244720,-638.27,0.00013698,2]
[353356803,1739794244730,-500.0,0.00013698,2]
[353356804,1739794244740,-508.71092781,0.00013698,2]
[353356805,1739794244749,-370.93884154,0.00013698,2]
[353356806,1739794244760,-500.0,0.00013698,2]
[353356807,1739794244770,-508.55118645,0.00013698,2]
[353356808,1739794244779,-984.33,0.00013698,2]
[353356809,1739794244788,-515.84914668,0.00013698,2]
[353356810,1739794244798,-500.0,0.00013698,2]
[353356811,1739794244807,-500.0,0.00013698,2]
[353356812,1739794244816,-500.0,0.00013698,2]
[353356813,1739794244826,-501.22951178,0.00013698,2]
[353356814,1739794244836,-500.0,0.00013698,2]
[353356815,1739794244845,-500.0,0.00013698,2]
[353356816,1739794244854,-500.0,0.00013698,2]
[353356817,1739794244865,-500.0,0.00013698,2]
[353356818,1739794244874,-727.27,0.00013698,2]
[353356819,1739794244883,-500.0,0.00013698,2]
[353356820,1739794244892,-934.69,0.00013698,2]
[353356821,1739794244902,-500.0,0.00013698,2]
[353356822,1739794244911,-980.72,0.00013698,2]
[353356823,1739794244920,-238.30786062,0.00013698,2]
[353356824,1739794244930,-245.45869314,0.00013698,2]
[353356825,1739794244939,-566.72,0.00013698,2]
[353356826,1739794244948,-500.0,0.00013698,2]
[353356827,1739794244958,-500.0,0.00013698,2]
[353356828,1739794244968,-1230.89,0.00013698,2]
[353356829,1739794244977,-500.0,0.00013698,2]
[353356830,1739794244986,-1177.91,0.00013698,2]
[353356831,1739794244997,-500.0,0.00013698,2]
[353356832,1739794245006,-500.0,0.00013698,2]
[353356833,1739794245016,-500.0,0.00013698,2]
[353356834,1739794245025,-501.6908489,0.00013698,2]
[353356835,1739794245036,-500.0,0.00013698,2]
[353356836,1739794245045,-34.6846159,0.00013698,2]
[353356837,1739794245073,-977.7853841,0.00013698,2]
[353356838,1739794245083,-852.43,0.00013698,2]
[353356839,1739794245092,-1012.47,0.00013698,2]